bitfinex-derivatives/quotes_ETHF0:USTF0_20210110
["timestamp","ask_amount","ask_price","bid_price","bid_amount"]
[1610283923236,4.00959,1296.2,1296.1,11.38917064]
[1610283923837,4.00959,1296.2,1296.1,10.0]
[1610283924238,4.00959,1296.2,1296.1,11.84921618]
[1610283924635,4.00959,1296.2,1296.1,10.0]
[1610283926635,4.00959,1296.2,1296.1,12.30853385]
[1610283927236,4.00959,1296.2,1296.1,16.31812385]
[1610283928936,4.00959,1296.2,1296.1,14.00959]
[1610283929341,3.405,1296.8,1296.1,14.00959]
[1610283929740,3.405,1296.8,1296.7,1.84190691]
[1610283929939,6.811,1297.3,1296.7,3.73590691]
[1610283930137,4.979,1297.8,1296.7,3.73590691]
[1610283930338,1.574,1297.8,1296.7,3.73590691]
[1610283930541,1.574,1297.8,1297.7,0.4600582]
[1610283930940,50.401,1298.6,1297.7,0.4600582]
[1610283931139,4.00959,1297.8,1297.7,0.4600582]
[1610283931539,4.00959,1297.8,1297.6,0.69008729]
[1610283931739,4.00959,1297.8,1297.5,0.91987683]
[1610283931740,4.00959,1297.8,1297.7,0.69008657]
[1610283931941,4.00959,1297.8,1297.7,10.69008657]
[1610283932440,4.00959,1297.8,1297.7,10.0]
[1610283932842,4.00959,1297.8,1297.7,10.91975081]
[1610283933042,4.00959,1297.8,1297.7,10.0]
[1610283937444,4.00959,1297.8,1297.7,11.38199294]
[1610283937846,4.00959,1297.8,1297.7,11.84078922]
[1610283938847,4.00959,1297.8,1297.7,10.0]
[1610283939447,10.216,1298.6,1297.7,10.0]
[1610283939649,6.811,1298.6,1297.7,10.0]
[1610283940047,6.811,1298.6,1298.2,0.37829303]
[1610283940247,6.811,1298.6,1298.2,2.43279303]
[1610283940849,6.811,1298.6,1298.5,1.14835707]
[1610283941050,3.405,1299.4,1298.5,3.60555707]
[1610283941250,4.00959,1298.6,1298.5,12.4572]
[1610283941650,4.00959,1298.6,1298.5,2.4572]
[1610283941849,4.00959,1298.6,1298.5,3.60629385]
[1610283942051,4.00959,1298.6,1298.5,13.60629385]
[1610283942952,4.00959,1298.6,1298.5,12.4572]
[1610283943153,4.00959,1298.6,1298.5,16.46679]
[1610283943553,4.00959,1298.6,1298.5,12.4572]
[1610283947463,4.00959,1298.6,1298.5,14.2895256]
[1610283948362,3.405,1299.4,1298.5,14.2895256]
[1610283948560,3.405,1299.4,1298.5,12.4572]
[1610283948762,3.405,1299.4,1298.7,1.83009501]
[1610283949164,3.405,1299.4,1298.9,4.00959]
[1610283949562,3.405,1299.4,1298.9,5.54299]
[1610283949763,3.405,1299.4,1299.0,1.05885689]
[1610283950064,3.405,1299.4,1299.1,10.0]
[1610283950462,3.405,1299.4,1299.2,10.0]
[1610283950864,3.405,1299.4,1299.3,10.0]
[1610283951065,6.811,1300.0,1299.3,10.0]
[1610283951263,4.00959,1299.4,1299.3,10.0]
[1610283953566,4.00959,1299.4,1299.3,11.814]
[1610283954268,4.00959,1299.4,1299.3,13.64044424]
[1610283954466,20.401,1301.3,1299.3,13.64044424]
[1610283954866,20.401,1301.3,1299.4,10.0]
[1610283955070,20.401,1301.3,1300.4,0.3682462]
[1610283955268,4.00959,1300.5,1300.0,4.00959]
[1610283955569,4.00959,1300.5,1299.8,1.36824621]
[1610283955770,4.00959,1300.5,1300.4,10.0]
[1610283956368,4.00959,1300.5,1300.1,1.9279]
[1610283956769,4.00959,1300.5,1300.1,3.29381901]
[1610283956969,4.00959,1300.5,1300.2,10.0]
[1610283957171,10.216,1301.3,1300.3,1.36522643]
[1610283957372,3.405,1301.3,1300.3,11.36522643]
[1610283957572,3.405,1301.3,1300.4,10.0]
[1610283957771,61.5055,1301.4,1300.4,12.207]
[1610283957972,61.5055,1301.4,1300.4,3.57144931]
[1610283958172,61.5055,1301.4,1300.5,10.0]
[1610283958372,6.0,1300.5,1300.4,2.207]
[1610283958776,6.0,1300.5,1300.4,3.5722152]
[1610283958973,6.0,1300.5,1300.4,13.5722152]
[1610283959172,6.0,1300.5,1300.4,16.21659]
[1610283959372,6.0,1300.5,1300.4,12.207]
[1610283959973,6.0,1300.5,1300.4,13.57451206]
[1610283961172,10.00959,1300.5,1300.4,13.57451206]
[1610283961774,10.00959,1300.5,1300.4,12.207]
[1610283962873,6.0,1300.5,1300.4,12.207]
[1610283963675,6.0,1300.5,1300.4,14.02800671]
[1610283963875,6.0,1300.5,1300.4,12.207]
[1610283964675,6.0,1300.5,1300.4,14.47942293]
[1610283965676,6.0,1300.5,1300.4,12.207]
[1610283966674,6.0,1300.5,1300.4,14.47836484]
[1610283967276,6.0,1300.5,1300.4,18.48795484]
[1610283970079,6.0,1300.5,1300.4,16.21659]
[1610283970281,6.0,1300.5,1300.4,18.93742574]
[1610283971281,6.0,1300.5,1300.4,16.21659]
[1610283972080,3.405,1302.3,1300.4,16.21659]
[1610283972682,3.405,1302.3,1301.9,0.67931477]
[1610283973282,4.00959,1302.0,1301.9,0.67931477]
[1610283974081,4.00959,1302.0,1301.8,0.67974385]
[1610283974482,4.00959,1302.0,1301.9,10.0]
[1610283974881,4.00959,1302.0,1301.8,10.0]
[1610283975281,4.00959,1302.0,1301.9,10.0]
[1610283977082,34.00959,1302.0,1301.9,10.0]
[1610283979084,39.37673925,1302.0,1301.9,10.0]
[1610283979685,40.04051453,1302.0,1301.9,10.0]
[1610283979885,40.04051453,1302.0,1301.9,1.7071]
[1610283980689,40.04051453,1302.0,1300.2,0.68512468]
[1610283980887,46.63830674,1302.0,1300.1,0.68547303]
[1610283981290,4.00959,1300.2,1300.0,0.68604956]
[1610283981488,30.0,1300.1,1300.0,0.68604956]
[1610283981690,30.0,1300.1,1299.8,0.68668721]
[1610283981889,30.0,1300.1,1299.6,0.68668863]
[1610283982289,30.0,1300.1,1299.7,10.0]
[1610283982489,5.94429,1300.2,1299.7,10.0]
[1610283982689,35.94429,1300.2,1299.8,10.0]
[1610283982888,5.94429,1300.2,1299.8,10.0]
[1610283983089,5.94429,1300.2,1299.9,0.22874267]
[1610283983291,4.00959,1300.0,1299.9,0.22874267]
[1610283983489,4.00959,1300.0,1299.9,10.22874267]
[1610283983691,4.00959,1300.0,1299.9,10.0]
[1610283984092,4.00959,1300.0,1299.9,10.45759847]
[1610283984396,4.00959,1300.0,1299.9,10.0]
[1610283984595,34.00959,1300.0,1299.9,10.0]
[1610283984799,34.00959,1300.0,1299.9,10.2288459]
[1610283985196,34.00959,1300.0,1299.9,10.0]
[1610283985596,4.00959,1300.0,1299.9,10.0]
[1610283985798,4.00959,1300.0,1299.9,10.22854184]
[1610283986397,4.00959,1300.0,1299.9,10.0]
[1610283986797,4.00959,1300.0,1299.9,10.68466032]
[1610283987598,4.00959,1300.0,1299.9,11.13949143]
[1610283987798,4.00959,1300.0,1299.9,10.0]
[1610283988198,4.00959,1300.0,1299.9,11.36498985]
[1610283988599,4.00959,1300.0,1299.9,10.0]
[1610283988798,4.00959,1300.0,1299.9,12.2382]
[1610283988999,4.00959,1300.0,1299.9,14.05589085]
[1610283989197,1.8796,1301.9,1299.9,14.05589085]
[1610283989398,4.00959,1300.4,1300.0,10.0]
[1610283989798,56.8692,1302.1,1300.0,10.0]
[1610283989999,6.811,1301.3,1300.3,1.81358473]
[1610283990199,6.811,1301.3,1300.3,3.60548473]
[1610283990399,6.811,1301.3,1301.1,0.90600131]
[1610283990600,60.2742,1302.1,1301.1,0.90600131]
[1610283990799,60.2742,1302.1,1301.1,3.37880131]
[1610283991001,60.2742,1302.1,1301.6,0.22644437]
[1610283991399,4.00959,1301.7,1301.6,0.22644437]
[1610283992000,4.00959,1301.7,1301.6,10.22644437]
[1610283993702,4.00959,1301.7,1301.6,10.0]
[1610283994301,4.00959,1301.7,1301.6,10.22615454]
[1610283995001,4.00959,1301.7,1301.6,10.0]
[1610283995602,34.00959,1301.7,1301.6,10.0]
[1610284002206,4.00959,1301.7,1301.6,10.0]
[1610284003208,4.00959,1301.7,1301.6,10.22612064]
[1610284003811,4.00959,1301.7,1301.6,10.45184587]
[1610284004508,4.00959,1301.7,1301.6,10.0]
[1610284006110,4.00959,1301.7,1301.6,10.67714626]
[1610284006312,34.00959,1301.7,1301.6,10.67714626]
[1610284006711,4.00959,1301.7,1301.6,10.67714626]
[1610284007113,3.405,1302.1,1301.6,10.67714626]
[1610284007311,4.00959,1301.7,1301.6,10.67714626]
[1610284007513,4.00959,1301.7,1301.5,3.00491725]
[1610284007713,4.00959,1301.7,1301.6,10.0]
[1610284008315,4.00959,1301.7,1301.6,10.45163816]
[1610284009916,4.00959,1301.7,1301.6,10.0]
[1610284010316,4.00959,1301.7,1301.6,10.22572083]
[1610284010515,4.00959,1301.7,1301.6,15.22572083]
[1610284010716,4.00959,1301.7,1301.6,15.0]
[1610284011319,34.00959,1301.7,1301.6,15.0]
[1610284013427,35.75529,1301.7,1301.6,15.0]
[1610284020334,5.75529,1301.7,1301.6,15.0]
[1610284021136,4.00959,1301.7,1301.6,15.0]
[1610284022136,34.00959,1301.7,1301.6,15.0]
[1610284027343,4.00959,1301.7,1301.6,15.0]
[1610284032450,4.00959,1301.7,1301.6,15.22524389]
[1610284034150,4.00959,1301.7,1301.6,15.0]
[1610284037055,4.00959,1301.7,1301.6,15.22441712]
[1610284037454,4.00959,1301.7,1301.6,15.44880366]
[1610284038254,4.00959,1301.7,1301.6,15.0]
[1610284038554,4.00959,1301.7,1301.6,15.67272024]
[1610284038854,4.00959,1301.7,1301.6,15.0]
[1610284039254,4.00959,1301.7,1301.6,15.44875274]
[1610284039659,4.00959,1301.7,1301.6,15.0]
[1610284040258,4.00959,1301.7,1301.6,15.44872766]
[1610284041659,34.00959,1301.7,1301.6,15.0]
[1610284042062,34.00959,1301.7,1301.6,15.22461923]
[1610284042461,34.00959,1301.7,1301.6,15.0]
[1610284044067,4.00959,1301.7,1301.6,15.0]
[1610284046865,4.00959,1301.7,1301.6,15.22461403]
[1610284047366,4.00959,1301.7,1301.6,15.0]
[1610284048166,8.84929,1302.5,1301.6,15.0]
[1610284048368,2.11,1302.5,1301.6,15.0]
[1610284048567,2.11,1302.5,1301.6,15.22492111]
[1610284048769,2.4299,1302.8,1301.6,15.22492111]
[1610284048967,60.2701,1302.9,1301.7,10.0]
[1610284049167,60.2701,1302.9,1301.7,10.22481698]
[1610284049368,60.2701,1302.9,1301.8,10.0]
[1610284049567,4.00959,1301.9,1301.8,10.22482109]
[1610284049767,4.00959,1301.9,1301.8,0.22482109]
[1610284049969,4.00959,1301.9,1301.7,10.0]
[1610284049970,4.00959,1301.9,1301.7,10.22495845]
[1610284050168,4.00959,1301.9,1301.8,10.0]
[1610284050367,4.00959,1301.9,1301.8,10.2249999]
[1610284050571,4.00959,1301.9,1301.8,0.44994379]
[1610284050771,4.00959,1301.9,1301.8,10.44994379]
[1610284053175,4.00959,1301.9,1301.8,10.22519526]
[1610284053775,4.00959,1301.9,1301.8,10.45004849]
[1610284053976,4.00959,1301.9,1301.8,10.22494298]
[1610284054377,4.00959,1301.9,1301.8,10.44969496]
[1610284060993,4.00959,1301.9,1301.8,15.44969496]
[1610284063396,4.00959,1301.9,1301.8,15.0]
[1610284063998,4.00959,1301.9,1301.8,15.22487832]
[1610284064698,4.00959,1301.9,1301.8,15.0]
[1610284077216,1.7684,1302.1,1301.8,15.0]
[1610284077616,4.00959,1301.9,1301.8,15.0]
[1610284077815,4.00959,1301.9,1301.8,5.0]
[1610284078016,4.00959,1301.9,1301.8,15.0]
[1610284089727,4.00959,1301.9,1301.8,15.22368513]
[1610284090327,4.00959,1301.9,1301.8,15.44694929]
[1610284090527,4.00959,1301.9,1301.8,15.67022819]
[1610284090926,4.00959,1301.9,1301.8,15.0]
[1610284091328,4.00959,1301.9,1301.8,15.44698908]
[1610284092729,4.00959,1301.9,1301.8,15.0]
[1610284093430,4.00959,1301.9,1301.8,15.44708866]
[1610284094433,4.00959,1301.9,1301.8,15.0]
[1610284094834,4.00959,1301.9,1301.8,15.44699622]
[1610284095833,4.00959,1301.9,1301.8,15.0]
[1610284096736,4.00959,1301.9,1301.8,15.44642007]
[1610284097035,4.00959,1301.9,1301.8,15.0]
[1610284097636,4.00959,1301.9,1301.8,15.44616987]
[1610284099037,4.00959,1301.9,1301.8,15.0]
[1610284099438,4.00959,1301.9,1301.8,15.44573138]
[1610284100339,4.00959,1301.9,1301.8,15.0]
[1610284101644,4.00959,1301.9,1301.8,15.67025884]
[1610284102044,4.00959,1301.9,1301.8,15.0]
[1610284102645,4.00959,1301.9,1301.8,15.44791703]
[1610284104548,4.00959,1301.9,1301.8,15.0]
[1610284104948,4.00959,1301.9,1301.8,15.67405965]
[1610284107354,4.00959,1301.9,1301.8,15.0]
[1610284108451,4.00959,1301.9,1301.8,45.89810237]
[1610284108850,4.00959,1301.9,1301.8,46.34572448]
[1610284109351,67.2233,1302.8,1301.8,46.34572448]
[1610284109552,67.2233,1302.8,1301.8,45.0]
[1610284109753,67.2233,1302.8,1301.9,10.0]
[1610284109952,67.2233,1302.8,1302.7,0.44789975]
[1610284110353,67.2233,1302.8,1302.7,10.67143675]
[1610284111352,16.0,1302.8,1302.7,10.0]
[1610284111754,16.0,1302.8,1302.7,10.89537163]
[1610284112053,20.00959,1302.8,1302.7,10.89537163]
[1610284114255,20.00959,1302.8,1302.7,10.67171742]
[1610284115455,14.56559,1302.8,1302.7,40.0]
[1610284115655,14.56559,1302.8,1302.7,41.11851474]
[1610284116057,10.556,1302.8,1302.7,45.12810474]
[1610284116257,10.556,1302.8,1302.7,44.00959]
[1610284116660,10.556,1302.8,1302.7,45.79350211]
[1610284116860,6.811,1303.3,1302.7,45.79350211]
[1610284117060,6.811,1303.3,1302.7,44.00959]
[1610284117260,6.811,1303.3,1303.1,0.33712749]
[1610284117460,3.405,1303.8,1303.1,0.33712749]
[1610284117660,55.5088,1304.1,1303.2,10.0]
[1610284118061,55.5088,1304.1,1303.9,0.22272288]
[1610284118461,55.5088,1304.1,1303.8,1.82389179]
[1610284118662,55.5088,1304.1,1303.9,10.0]
[1610284119262,55.5088,1304.1,1304.0,9.0]
[1610284119862,55.5088,1304.1,1303.9,10.0]
[1610284120062,4.00959,1304.0,1303.9,10.0]
[1610284120262,4.00959,1304.0,1303.6,0.22269491]
[1610284120665,4.00959,1304.0,1303.7,10.0]
[1610284120863,4.00959,1304.0,1303.7,10.22234782]
[1610284121063,4.00959,1304.0,1303.8,0.22216898]
[1610284121262,4.00959,1304.0,1303.8,2.66246898]
[1610284121463,4.00959,1304.0,1303.9,0.22210969]
[1610284121662,4.00959,1304.0,1303.9,10.22210969]
[1610284122064,4.00959,1304.0,1303.9,10.0]
[1610284122463,4.00959,1304.0,1303.9,10.44372143]
[1610284123065,4.00959,1304.0,1303.9,10.0]
[1610284123864,4.00959,1304.0,1303.9,10.66409364]
[1610284125265,4.00959,1304.0,1303.9,10.0]
[1610284125466,4.00959,1304.0,1303.9,10.88497885]
[1610284126366,20.401,1305.0,1303.9,10.0]
[1610284126568,20.401,1305.0,1303.9,40.0]
[1610284126770,16.996,1305.0,1304.6,0.2211091]
[1610284126967,6.811,1305.0,1304.6,1.8598091]
[1610284127170,3.405,1305.9,1304.7,10.0]
[1610284127369,3.405,1305.9,1304.9,0.2207941]
[1610284127571,3.405,1305.9,1304.9,2.0526941]
[1610284128175,4.00959,1305.0,1304.9,2.0526941]
[1610284128777,4.00959,1305.0,1304.9,1.8319]
[1610284128977,4.00959,1305.0,1304.9,2.27345816]
[1610284129178,4.00959,1305.0,1304.9,12.27345816]
[1610284129679,4.00959,1305.0,1304.9,11.8319]
[1610284130779,4.00959,1305.0,1304.9,12.05241325]
[1610284130979,4.00959,1305.0,1304.9,11.8319]
[1610284134379,4.00959,1305.0,1304.9,12.05342378]
[1610284135381,4.00959,1305.0,1304.9,11.8319]
[1610284139384,5.71729,1305.0,1304.9,11.8319]
[1610284145493,4.00959,1305.0,1304.9,11.8319]
[1610284146294,4.00959,1305.0,1304.9,12.05254353]
[1610284146692,4.00959,1305.0,1304.9,12.27303782]
[1610284147293,4.00959,1305.0,1304.9,12.49318983]
[1610284148392,4.00959,1305.0,1304.9,11.8319]
[1610284148694,4.00959,1305.0,1304.9,12.71327164]
[1610284149496,4.00959,1305.0,1304.9,12.93251287]
[1610284149695,4.00959,1305.0,1304.9,11.8319]
[1610284150097,4.00959,1305.0,1304.9,17.16090029]
[1610284150298,2.2011,1306.0,1304.9,17.16090029]
[1610284150701,10.185,1306.4,1305.0,10.0]
[1610284151105,10.185,1306.4,1305.8,0.21976924]
[1610284151504,10.185,1306.4,1305.8,10.21976924]
[1610284152105,10.185,1306.4,1305.9,10.0]
[1610284152305,10.185,1306.4,1305.8,0.21976924]
[1610284152306,10.185,1306.4,1306.0,9.0]
[1610284152706,10.185,1306.4,1305.9,10.0]
[1610284153809,10.185,1306.4,1306.1,10.0]
[1610284154109,4.00959,1306.2,1306.0,10.0]
[1610284154510,4.00959,1306.2,1305.7,10.0]
[1610284154709,4.00959,1306.2,1305.6,1.86238371]
[1610284154910,4.00959,1306.2,1305.8,10.0]
[1610284155210,4.00959,1306.2,1305.7,10.0]
[1610284155510,4.00959,1306.2,1305.8,10.0]
[1610284156111,10.185,1306.4,1305.8,10.0]
[1610284156112,4.00959,1305.9,1305.8,10.0]
[1610284156512,4.00959,1305.9,1305.5,0.22054869]
[1610284156713,6.24409,1305.9,1305.7,10.0]
[1610284156913,6.24409,1305.9,1305.8,10.0]
[1610284161916,4.00959,1305.9,1305.8,10.0]
[1610284167126,4.00959,1305.9,1305.8,15.0]
[1610284168127,4.00959,1305.9,1305.8,14.8]
[1610284175040,4.00959,1305.9,1305.8,15.0194214]
[1610284178042,29.00959,1305.9,1305.8,15.0194214]
[1610284178640,29.00959,1305.9,1305.8,14.8]
[1610284179141,29.00959,1305.9,1305.8,15.019477]
[1610284180145,29.00959,1305.9,1305.8,15.23855702]
[1610284182946,29.00959,1305.9,1305.8,14.8]
[1610284183348,29.00959,1305.9,1305.8,15.019317]
[1610284184146,29.00959,1305.9,1305.8,15.23823944]
[1610284184549,29.00959,1305.9,1305.8,15.45683182]
[1610284185748,29.00959,1305.9,1305.8,14.8]
[1610284186550,29.00959,1305.9,1305.8,15.45664545]
[1610284187052,29.00959,1305.9,1305.8,14.8]
[1610284187453,29.00959,1305.9,1305.8,15.67497089]
[1610284188354,29.00959,1305.9,1305.8,19.68456089]
[1610284189156,29.00959,1305.9,1305.8,49.68456089]
[1610284189559,29.00959,1305.9,1305.8,48.80959]
[1610284189757,29.00959,1305.9,1305.8,49.68351627]
[1610284190058,29.00959,1305.9,1305.8,48.80959]
[1610284190258,29.00959,1305.9,1305.8,18.80959]
[1610284190461,29.00959,1305.9,1305.8,19.90156636]
[1610284190660,29.00959,1305.9,1305.8,15.89197636]
[1610284190859,27.00959,1305.9,1305.8,15.89197636]
[1610284192061,27.00959,1305.9,1305.8,45.89197636]
[1610284192260,25.0,1305.9,1305.8,48.80959]
[1610284193060,25.0,1305.9,1305.8,18.80959]
[1610284193460,25.0,1305.9,1305.8,14.8]
[1610284194261,29.00959,1305.9,1305.8,14.8]
[1610284194562,29.00959,1305.9,1305.8,15.89212338]
[1610284194861,29.00959,1305.9,1305.8,14.8]
[1610284195261,29.00959,1305.9,1305.8,15.67430442]
[1610284195863,29.00959,1305.9,1305.8,15.45610572]
[1610284196264,29.00959,1305.9,1305.8,14.8]
[1610284196664,29.00959,1305.9,1305.8,15.45609588]
[1610284199365,29.00959,1305.9,1305.8,14.8]
[1610284199767,29.00959,1305.9,1305.8,15.67106871]
[1610284200168,29.00959,1305.9,1305.8,17.2787]
[1610284200367,29.00959,1305.9,1305.8,21.28829]
[1610284200567,29.00959,1305.9,1305.8,22.3766451]
[1610284200966,29.00959,1305.9,1305.8,18.3670551]
[1610284201768,29.00959,1305.9,1305.8,17.2787]
[1610284201968,29.00959,1305.9,1305.8,18.1497494]
[1610284202368,29.00959,1305.9,1305.8,17.93221285]
[1610284202568,29.00959,1305.9,1305.8,17.2787]
[1610284202968,29.00959,1305.9,1305.8,15.23597632]
[1610284203370,29.00959,1305.9,1305.8,14.8]
[1610284203669,29.00959,1305.9,1305.8,15.23606808]
[1610284204271,29.00959,1305.9,1305.8,15.01809747]
[1610284205470,35.52359,1305.9,1305.8,14.8]
[1610284210675,35.52359,1305.9,1305.8,6.7335]
[1610284211476,35.52359,1305.9,1305.0,30.0]
[1610284211876,35.52359,1305.9,1305.1,10.0]
[1610284212277,35.52359,1305.9,1305.2,10.0]
[1610284212479,4.00959,1305.3,1305.2,10.0]
[1610284212678,6.09609,1305.3,1305.1,10.0]
[1610284212880,6.09609,1305.3,1305.2,10.0]
[1610284213278,6.09609,1305.3,1305.1,10.0]
[1610284213878,6.09609,1305.3,1305.2,10.0]
[1610284214379,6.09609,1305.3,1305.1,10.0]
[1610284214779,6.09609,1305.3,1305.0,30.0]
[1610284214780,14.61179,1305.3,1305.2,10.0]
[1610284215379,14.61179,1305.3,1305.1,10.0]
[1610284215779,14.61179,1305.3,1305.2,10.0]
[1610284216581,6.09609,1305.3,1305.1,10.0]
[1610284216780,6.09609,1305.3,1305.2,10.0]
[1610284217181,6.09609,1305.3,1305.0,30.0]
[1610284217983,6.09609,1305.3,1305.2,10.0]
[1610284218183,6.09609,1305.3,1305.1,10.0]
[1610284218384,6.09609,1305.3,1305.2,10.0]
[1610284218784,6.09609,1305.3,1305.1,10.0]
[1610284219184,6.09609,1305.3,1305.2,10.0]
[1610284219585,6.09609,1305.3,1305.1,10.0]
[1610284219786,6.09609,1305.3,1305.2,10.0]
[1610284220187,6.09609,1305.3,1305.1,10.0]
[1610284220791,6.09609,1305.3,1305.2,10.0]
[1610284221190,6.09609,1305.3,1305.1,10.0]
[1610284221590,6.09609,1305.3,1305.2,10.0]
[1610284222190,6.09609,1305.3,1305.1,10.0]
[1610284222590,6.09609,1305.3,1305.2,10.0]
[1610284223092,6.09609,1305.3,1305.1,10.0]
[1610284223492,6.09609,1305.3,1305.2,10.0]
[1610284223992,6.09609,1305.3,1305.1,10.0]
[1610284224394,6.09609,1305.3,1305.2,10.0]
[1610284224794,6.09609,1305.3,1305.1,10.0]
[1610284224992,6.09609,1305.3,1305.2,10.0]
[1610284225395,6.09609,1305.3,1305.1,10.0]
[1610284225593,6.09609,1305.3,1305.0,30.0]
[1610284225594,6.09609,1305.3,1305.2,10.0]
[1610284226393,6.09609,1305.3,1305.1,10.0]
[1610284226793,6.09609,1305.3,1305.2,10.0]
[1610284227194,6.09609,1305.3,1305.1,10.0]
[1610284227396,6.09609,1305.3,1305.2,10.0]
[1610284227995,6.09609,1305.3,1305.1,10.0]
[1610284228394,6.09609,1305.3,1305.2,10.0]
[1610284236800,6.09609,1305.3,1305.2,10.21896217]
[1610284237000,6.09609,1305.3,1305.2,10.0]
[1610284237401,6.09609,1305.3,1305.2,10.43769689]
[1610284237802,6.09609,1305.3,1305.2,10.21893479]
[1610284238404,6.09609,1305.3,1305.2,10.0]
[1610284244506,6.09609,1305.3,1305.0,30.0]
[1610284244707,16.51837458,1305.3,1305.0,30.0]
[1610284244908,16.51837458,1305.3,1305.1,10.0]
[1610284245108,8.57200013,1305.2,1305.1,10.0]
[1610284245307,8.57200013,1305.2,1305.0,27.5167]
[1610284245508,35.74726344,1305.2,1305.0,27.5167]
[1610284245708,35.74726344,1305.2,1305.0,12.5436]
[1610284245911,5.88451465,1305.1,1302.8,0.22196011]
[1610284246113,46.10051465,1305.1,1302.8,0.22196011]
[1610284246310,51.59001465,1305.1,1302.6,0.22215892]
[1610284246512,8.6978511,1304.1,1303.3,10.0]
[1610284246712,10.9340511,1304.1,1303.3,10.0]
[1610284246911,5.40433429,1304.0,1303.4,10.0]
[1610284247111,8.69844799,1304.0,1303.4,10.0]
[1610284247510,10.93423789,1304.1,1303.5,10.0]
[1610284247714,5.9093,1303.9,1303.5,10.0]
[1610284248113,7.64016736,1304.1,1302.6,0.22217012]
[1610284248312,5.4976,1304.0,1302.5,10.22218983]
[1610284248513,4.00959,1302.6,1302.5,10.22218983]
[1610284248918,4.00959,1302.6,1302.5,10.0]
[1610284249317,4.00959,1302.6,1302.5,10.44422544]
[1610284249617,4.00959,1302.6,1302.5,10.0]
[1610284250019,4.00959,1302.6,1302.5,10.44421821]
[1610284250418,4.00959,1302.6,1302.5,10.22211898]
[1610284250820,4.00959,1302.6,1302.5,10.0]
[1610284254124,4.00959,1302.6,1302.5,10.22199965]
[1610284254724,4.00959,1302.6,1302.5,10.0]
[1610284255124,4.00959,1302.6,1302.5,10.44369748]
[1610284255825,4.00959,1302.6,1302.5,10.22191043]
[1610284257125,4.00959,1302.6,1302.5,0.22191043]
[1610284257325,4.00959,1302.6,1302.4,2.0416922]
[1610284257525,4.00959,1302.6,1302.5,0.22188585]
[1610284258225,4.00959,1302.6,1302.4,0.22193702]
[1610284260228,4.00959,1302.6,1302.5,0.22187708]
[1610284260628,4.00959,1302.6,1302.5,0.44332076]
[1610284261028,4.00959,1302.6,1302.5,0.88540848]
[1610284261428,4.00959,1302.6,1302.5,1.10611529]
[1610284261632,4.00959,1302.6,1302.4,3.42667209]
[1610284262430,55.9114,1303.3,1302.4,33.42667209]
[1610284262630,55.9114,1303.3,1302.5,1.32537476]
[1610284262631,4.00959,1302.7,1302.5,1.32537476]
[1610284264134,55.9114,1303.3,1302.6,1.32411654]
[1610284264732,55.9114,1303.3,1302.8,4.00959]
[1610284264932,55.9114,1303.3,1303.2,0.44039222]
[1610284265132,55.9114,1303.3,1303.2,2.04549222]
[1610284266636,59.92099,1303.3,1303.2,2.04549222]
[1610284266834,59.92099,1303.3,1303.2,2.26392312]
[1610284267234,59.92099,1303.3,1303.2,1.6051]
[1610284267435,59.92099,1303.3,1303.2,2.04452143]
[1610284267834,59.92099,1303.3,1303.2,1.82488446]
[1610284268434,59.92099,1303.3,1303.2,2.04476779]
[1610284269237,59.92099,1303.3,1303.2,2.26405512]
[1610284269636,59.92099,1303.3,1303.2,32.26405512]
[1610284270535,59.92099,1303.3,1303.2,31.6051]
[1610284270737,55.9114,1303.3,1303.2,31.6051]
[1610284270935,55.9114,1303.3,1303.2,32.48171379]
[1610284271338,3.405,1304.0,1303.2,32.48171379]
[1610284271537,10.216,1305.1,1303.2,32.91723368]
[1610284271938,10.216,1305.1,1304.1,0.21848675]
[1610284272135,10.216,1305.1,1304.1,2.73158675]
[1610284272336,10.216,1305.1,1304.2,30.21830636]
[1610284272637,10.216,1305.1,1304.4,0.21800933]
[1610284272836,10.216,1305.1,1304.4,2.42400933]
[1610284273036,10.216,1305.1,1304.5,0.21793333]
[1610284273438,10.216,1305.1,1304.6,0.21783393]
[1610284273636,6.811,1305.1,1304.4,2.42405972]
[1610284274037,6.811,1305.1,1304.4,2.206]
[1610284274638,4.00959,1304.5,1304.4,2.206]
[1610284275640,4.00959,1304.5,1304.4,32.206]
[1610284276240,4.00959,1304.5,1304.4,32.42374647]
[1610284276440,4.00959,1304.5,1304.4,32.64120947]
[1610284276640,4.00959,1304.5,1304.4,36.65079947]
[1610284276844,4.00959,1304.5,1304.4,36.8680087]
[1610284277342,6.811,1305.1,1304.4,36.8680087]
[1610284277542,6.811,1305.1,1304.4,37.08475623]
[1610284277742,6.811,1305.1,1304.4,47.08475623]
[1610284277943,6.811,1305.1,1305.0,1.91583279]
[1610284278141,10.185,1305.4,1305.0,1.91583279]
[1610284278544,10.185,1305.4,1305.1,10.21686013]
[1610284278744,4.00959,1305.2,1305.1,10.21686013]
[1610284278944,4.00959,1305.2,1305.1,0.21686013]
[1610284279350,4.00959,1305.2,1305.1,10.21686013]
[1610284280851,10.185,1305.4,1305.1,40.0]
[1610284281050,20.0,1305.9,1305.1,40.0]
[1610284281251,20.0,1305.9,1305.2,0.21616253]
[1610284281451,20.0,1305.9,1305.3,0.21614685]